bitfinex/quotes_ETHUSD_20250611
["timestamp","ask_amount","ask_price","bid_price","bid_amount"]
[1749642920729,6.52577279,2770.6,2770.5,0.01209857]
[1749642920940,10.18677279,2770.6,2770.5,1.09250293]
[1749642923074,6.52577279,2770.6,2770.5,1.09250293]
[1749642923375,10.18677279,2770.6,2770.5,1.09250293]
[1749642925343,6.52577279,2770.6,2770.5,1.09250293]
[1749642925534,10.18677279,2770.6,2770.5,1.09250293]
[1749642927642,7.5721055,2770.6,2770.5,1.09250293]
[1749642930667,7.5721055,2770.6,2770.5,1.09226174]
[1749642941502,7.5721055,2770.6,2770.5,0.01209857]
[1749642947644,7.5721055,2770.6,2770.5,1.45350928]
[1749642947809,0.30177901,2770.6,2770.5,1.45350928]
[1749642948009,0.30177901,2770.6,2770.5,0.78419857]
[1749642948231,3.96277901,2770.6,2770.5,2.94465029]
[1749642950048,0.30177901,2770.6,2770.5,2.94465029]
[1749642950343,3.96277901,2770.6,2770.5,0.78419857]
[1749642950852,3.96277901,2770.6,2770.5,2.94659736]
[1749642955109,3.96277901,2770.6,2770.5,2.17449736]
[1749642955110,7.5721055,2770.6,2770.5,2.17449736]
[1749642955524,7.5721055,2770.6,2770.5,0.01209857]
[1749642958256,3.96177901,2770.6,2770.5,0.01209857]
[1749642960268,7.5711055,2770.6,2770.5,0.01209857]
[1749642960763,3.96177901,2770.6,2770.5,0.01209857]
[1749642961269,0.30177901,2770.6,2770.5,0.01209857]
[1749642961568,3.6087598,2771.1,2770.5,3.00269736]
[1749642961777,3.66,2771.0,2770.9,1.08062112]
[1749642961934,3.66,2771.0,2770.8,1.44082816]
[1749642962757,7.26882821,2771.0,2770.8,1.44082816]
[1749642963069,3.66,2770.9,2770.8,1.44082816]
[1749642964146,4.40518711,2771.5,2770.9,0.8118]
[1749642964335,0.30177901,2771.5,2771.4,1.08021355]
[1749642964633,3.96177901,2771.5,2771.4,7.12915017]
[1749642964870,3.96177901,2771.5,2771.4,9.29154896]
[1749642965055,0.30177901,2771.5,2771.4,17.12915017]
[1749642965256,3.96177901,2771.5,2771.4,17.12915017]
[1749642965471,3.66,2771.5,2771.4,17.12915017]
[1749642965657,3.7070722,2772.4,2771.5,0.8198]
[1749642965857,0.30177901,2772.3,2772.0,1.07758081]
[1749642966058,3.66,2772.2,2772.0,1.07758081]
[1749642966265,0.30177901,2772.3,2772.1,0.8198]
[1749642966452,3.66,2772.2,2772.0,1.07758081]
[1749642966651,3.66,2772.2,2771.9,1.07758081]
[1749642966848,3.66,2772.1,2771.9,1.07758081]
[1749642967049,3.66,2772.1,2772.0,1.07758081]
[1749642967649,3.66,2772.1,2771.9,1.07758081]
[1749642968774,3.66,2772.1,2771.8,1.84148081]
[1749642968976,0.30177901,2772.3,2771.8,1.84148081]
[1749642969177,0.30177901,2772.3,2771.8,11.84148081]
[1749642969364,0.30177901,2772.3,2772.0,1.07758081]
[1749642969552,3.659,2772.2,2772.1,0.8016]
[1749642970373,3.659,2772.2,2772.1,1.87918081]
[1749642970572,3.659,2772.2,2772.1,0.8016]
[1749642970754,0.1,2772.4,2772.1,0.8016]
[1749642970954,3.659,2772.2,2772.1,0.8016]
[1749642973390,0.1,2772.4,2772.1,0.8016]
[1749642973693,0.1,2772.4,2772.2,10.0]
[1749642973694,3.659,2772.3,2772.2,10.0]
[1749642975978,0.1,2772.4,2772.2,10.0]
[1749642976188,3.758,2772.4,2772.2,10.0]
[1749642977000,3.758,2772.4,2772.1,0.8016]
[1749642977772,3.6075036,2772.0,2771.9,1.07758081]
[1749642977991,4.40674175,2772.1,2771.5,0.35810257]
[1749642978200,3.658,2772.0,2771.4,1.85818081]
[1749642978897,7.26555629,2772.0,2771.4,1.85818081]
[1749642979101,7.26555629,2772.0,2771.5,0.01504905]
[1749642979405,7.26557453,2772.0,2771.5,0.01504905]
[1749642979572,3.60764598,2771.9,2771.5,0.01504905]
[1749642979766,6.32925017,2771.9,2771.5,0.01504905]
[1749642980083,3.60802424,2771.6,2771.5,0.01504905]
[1749642980269,7.26602424,2771.6,2771.5,0.01504905]
[1749642980464,8.05712424,2771.6,2771.5,0.01504905]
[1749642981308,8.60712424,2771.6,2771.5,0.01504905]
[1749642981878,8.58722424,2771.6,2771.5,0.01504905]
[1749642982079,10.74144011,2771.6,2771.5,0.01504905]
[1749642983361,20.3649142,2771.6,2771.5,0.01504905]
[1749642985001,30.3649142,2771.6,2771.5,0.01504905]
[1749642986605,31.3079142,2771.6,2771.5,0.01504905]
[1749642992790,26.7069142,2771.6,2771.5,0.01504905]
[1749642992975,31.3079142,2771.6,2771.5,0.01504905]
[1749642995194,26.7069142,2771.6,2771.5,0.01504905]
[1749642995397,31.3079142,2771.6,2771.5,0.01504905]
[1749643000353,26.7069142,2771.6,2771.5,0.01504905]
[1749643000657,31.3079142,2771.6,2771.5,0.01504905]
[1749643005337,27.98614592,2771.6,2771.5,0.01504905]
[1749643006454,23.38514592,2771.6,2771.5,0.01504905]
[1749643006651,27.98614592,2771.6,2771.5,0.01504905]
[1749643011102,0.30177901,2771.6,2771.5,0.01504905]
[1749643011443,7.56880325,2771.6,2771.5,1.09531535]
[1749643011703,7.56880325,2771.6,2771.5,0.01504905]
[1749643011885,7.56880325,2771.6,2771.5,1.09585349]
[1749643012485,3.90980325,2771.6,2771.5,1.09585349]
[1749643012751,7.56880325,2771.6,2771.5,1.09585349]
[1749643013776,7.56880325,2771.6,2771.5,0.01504905]
[1749643013980,3.90980325,2771.6,2771.5,0.01504905]
[1749643014158,7.56880325,2771.6,2771.5,0.01504905]
[1749643019369,9.39574549,2771.6,2771.5,0.01504905]
[1749643019563,9.94574549,2771.6,2771.5,0.01504905]
[1749643021005,7.56880325,2771.6,2771.5,0.01504905]
[1749643021990,8.11880325,2771.6,2771.5,0.01504905]
[1749643022182,8.93960325,2771.6,2771.5,0.01504905]
[1749643022992,10.21150906,2771.6,2771.5,0.01504905]
[1749643023188,13.86950906,2771.6,2771.5,0.01504905]
[1749643023356,15.79352974,2771.6,2771.5,0.01504905]
[1749643023893,16.34352974,2771.6,2771.5,0.01504905]
[1749643025795,17.14842974,2771.6,2771.5,0.01504905]
[1749643027056,10.84672393,2771.6,2771.5,0.01504905]
[1749643027296,17.14842974,2771.6,2771.5,0.01504905]
[1749643028509,27.14842974,2771.6,2771.5,0.01504905]
[1749643031510,27.3513481,2771.6,2771.5,0.01504905]
[1749643031710,27.14842974,2771.6,2771.5,0.01504905]
[1749643032604,27.35134691,2771.6,2771.5,0.01504905]
[1749643032988,27.35134705,2771.6,2771.5,0.01504905]
[1749643033315,27.14842974,2771.6,2771.5,0.01504905]
[1749643033916,27.35134556,2771.6,2771.5,0.01504905]
[1749643034091,27.14842974,2771.6,2771.5,0.01504905]
[1749643034494,4.15906597,2770.8,2770.6,1.07970145]
[1749643034821,3.60932649,2770.6,2770.5,1.07970145]
[1749643034993,3.60945677,2770.5,2770.4,1.07970145]
[1749643035188,7.26845677,2770.5,2770.4,1.07970145]
[1749643037312,3.60958706,2770.4,2770.3,1.89210145]
[1749643038006,3.60958706,2770.4,2770.3,1.07970145]
[1749643038324,3.60999582,2770.1,2769.9,1.07970145]
[1749643038487,3.61023863,2769.9,2769.8,1.84900145]
[1749643038838,7.26923863,2769.9,2769.8,0.7693]
[1749643040316,3.659,2769.9,2769.8,0.7693]
[1749643041506,4.55180447,2770.3,2769.9,0.7763]
[1749643041507,3.60980447,2770.3,2769.9,0.7763]
[1749643041704,3.659,2770.2,2770.0,0.7763]
[1749643041908,3.659,2770.2,2770.0,1.85332091]
[1749643042634,3.6096599,2770.4,2770.0,1.85332091]
[1749643042839,3.659,2770.3,2770.0,1.85332091]
[1749643043406,3.6096599,2770.4,2770.0,1.85332091]
[1749643043736,3.659,2770.3,2770.0,1.85332091]
[1749643044134,7.26873953,2770.3,2770.0,1.85332091]
[1749643044440,3.659,2770.2,2770.0,1.85332091]
[1749643044601,0.942,2770.7,2770.0,1.85332091]
[1749643044602,3.659,2770.1,2770.0,1.85332091]
[1749643045137,3.659,2770.1,2770.0,0.7763]
[1749643047436,3.659,2770.1,2770.0,1.85340238]
[1749643047941,3.659,2770.1,2770.0,1.85520179]
[1749643050013,3.60975029,2770.3,2770.0,1.85520179]
[1749643050231,3.60959691,2770.4,2770.1,1.07710238]
[1749643050232,3.659,2770.2,2770.1,1.07710238]
[1749643050959,7.26884766,2770.2,2770.1,1.07710238]
[1749643051421,3.659,2770.2,2770.1,1.07710238]
[1749643051821,3.659,2770.2,2770.0,1.85340238]
[1749643052219,3.659,2770.2,2770.1,1.07710238]
[1749643055351,3.659,2770.2,2770.1,0.01]
[1749643056249,0.30177901,2770.8,2770.2,0.7897]
[1749643056419,7.26828314,2770.7,2770.4,1.07872425]
[1749643056619,7.26828314,2770.7,2770.5,1.07872425]
[1749643057007,3.60932649,2770.6,2770.5,1.07872425]
[1749643057447,3.60932649,2770.6,2770.5,1.08872425]
[1749643058015,3.91089986,2770.8,2770.5,1.07872425]
[1749643058352,7.26832649,2770.6,2770.5,1.07872425]
[1749643058750,7.26832649,2770.6,2770.5,1.07910384]
[1749643059546,3.659,2770.6,2770.5,1.07910384]
[1749643060759,3.659,2770.6,2770.4,1.43960193]
[1749643061053,3.659,2770.6,2770.5,1.08955309]
[1749643061217,3.659,2770.6,2770.5,0.01]
[1749643061617,3.659,2770.6,2770.5,1.08967594]
[1749643062350,3.659,2770.6,2770.5,0.01]
[1749643062857,7.26832649,2770.6,2770.5,0.01]
[1749643063447,9.01642898,2770.6,2770.5,1.08989539]
[1749643063757,9.01642898,2770.6,2770.5,1.07989539]
[1749643064264,3.60958706,2770.4,2770.3,1.43960193]
[1749643064468,7.26858706,2770.4,2770.3,1.43960193]
[1749643064768,3.659,2770.4,2770.3,1.43960193]
[1749643065130,7.26858706,2770.4,2770.3,1.43960193]
[1749643065335,3.659,2770.4,2770.3,1.43960193]
[1749643065657,7.26858706,2770.4,2770.3,1.43960193]
[1749643065969,3.60971735,2770.3,2770.2,1.43960193]
[1749643066376,9.91142316,2770.3,2770.2,1.43960193]
[1749643067366,9.91142316,2770.3,2770.1,1.43960193]
[1749643067671,3.659,2770.2,2770.1,1.43960193]
[1749643067879,3.659,2770.2,2770.0,2.9791029]
[1749643068978,3.659,2770.2,2770.0,2.48472006]
[1749643069480,3.659,2770.2,2770.1,0.01]
[1749643069836,3.659,2770.2,2770.0,2.48472006]
[1749643070256,3.659,2770.2,2770.1,2.1594029]
[1749643070739,3.659,2770.2,2770.0,2.48472006]
[1749643071139,3.659,2770.2,2770.1,2.1594029]
[1749643072572,3.659,2770.2,2770.1,2.1694029]
[1749643073151,7.26884766,2770.2,2770.1,2.1694029]
[1749643073352,3.659,2770.2,2770.1,2.1694029]
[1749643075088,3.659,2770.2,2770.1,2.1594029]
[1749643076790,3.659,2770.2,2770.1,2.16432119]
[1749643077584,7.26884766,2770.2,2770.1,2.16432119]
[1749643077787,8.35670125,2770.2,2770.1,0.00491829]
[1749643077988,4.74685359,2770.2,2770.1,0.00491829]
[1749643078368,3.659,2770.2,2770.1,2.16432119]
[1749643079209,6.30170581,2770.5,2770.1,2.16432119]
[1749643079210,9.91124437,2770.5,2770.1,2.16432119]
[1749643079370,7.26866389,2770.4,2770.3,1.44150416]
[1749643079565,3.659,2770.4,2770.3,1.44150416]
[1749643079755,3.60940795,2770.6,2770.3,1.44150416]
[1749643079961,4.47158266,2770.6,2770.5,1.08109857]
[1749643080291,0.86223184,2770.6,2770.5,1.08109857]
[1749643080592,0.30177901,2770.6,2770.4,1.44150416]
[1749643080797,0.30177901,2770.6,2770.5,1.44150416]
[1749643080953,3.96077901,2770.6,2770.5,0.00499096]
[1749643081162,3.96077901,2770.6,2770.5,0.77599096]
[1749643081356,0.30177901,2770.6,2770.5,0.77599096]
[1749643081666,3.95977901,2770.6,2770.5,0.77599096]
[1749643082182,3.95977901,2770.6,2770.5,2.93539386]
[1749643082494,3.95977901,2770.6,2770.5,2.94038482]
[1749643082993,3.658,2770.6,2770.5,2.94038482]
[1749643083709,3.60860232,2771.2,2770.5,2.93539386]
[1749643083910,3.60860232,2771.2,2770.9,1.08050434]
[1749643083911,4.11306023,2771.1,2770.9,1.08050434]
[1749643084200,0.45506023,2771.1,2770.9,1.08050434]
[1749643084512,3.658,2771.0,2770.9,1.08052343]
[1749643084807,3.99601312,2771.0,2770.9,1.08052343]
[1749643084972,3.658,2771.0,2770.9,1.08052343]
[1749643085494,3.99601331,2771.0,2770.9,1.08052343]
[1749643085788,3.99601311,2771.0,2770.9,1.08052343]
[1749643085981,0.45506023,2771.1,2770.9,1.08052343]
[1749643086179,3.99529422,2771.0,2770.9,1.08052343]
[1749643086492,0.45506023,2771.1,2770.9,1.08052343]
[1749643086697,3.658,2771.0,2770.9,1.08026156]
[1749643087068,3.99529295,2771.0,2770.9,1.08026156]
[1749643087259,4.66987881,2771.0,2770.9,1.08012885]
[1749643087458,5.00717174,2771.0,2770.9,1.08012885]
[1749643087653,4.66987881,2771.0,2770.9,1.08012885]
[1749643088860,1.01187881,2771.0,2770.9,1.08012885]
[1749643089064,4.66987881,2771.0,2770.9,1.89042885]
[1749643089273,4.66987881,2771.0,2770.9,0.8103]
[1749643089595,4.66987881,2771.0,2770.9,1.08968038]
[1749643090110,4.66987881,2771.0,2770.9,0.34727027]
[1749643090398,4.66987881,2771.0,2770.9,2.98871551]
[1749643090695,1.01187881,2771.0,2770.9,2.24634819]
[1749643091015,1.01187881,2771.0,2770.9,2.57360851]
[1749643091190,1.01187881,2771.0,2770.9,13.67702069]
[1749643091373,4.66987881,2771.0,2770.9,13.01964819]
[1749643091700,1.01187881,2771.0,2770.9,13.35689036]
[1749643092004,4.66987881,2771.0,2770.9,13.01964819]
[1749643092172,1.01187881,2771.0,2770.9,13.01964819]
[1749643092374,1.01187881,2771.0,2770.9,21.4807569]
[1749643092702,1.01187881,2771.0,2770.9,19.331354]
[1749643093311,1.01187881,2771.0,2770.9,19.66856287]
[1749643093480,0.46187881,2771.0,2770.9,19.66856124]
[1749643093822,0.46187881,2771.0,2770.9,19.66853803]
[1749643094123,0.46187881,2771.0,2770.9,22.21055787]
[1749643095069,0.46187881,2771.0,2770.9,22.54773163]
[1749643095292,0.46187881,2771.0,2770.9,19.66852776]
[1749643095708,0.46187881,2771.0,2770.9,19.65852776]
[1749643095999,0.46187881,2771.0,2770.9,13.35682195]
[1749643096201,0.46187881,2771.0,2770.9,13.36827656]
[1749643096766,0.46187881,2771.0,2770.9,13.36599779]
[1749643097199,0.46187881,2771.0,2770.9,13.70289538]
[1749643097375,6.30170581,2772.1,2771.0,1.3006]
[1749643097578,6.30170581,2772.1,2771.6,2.37686655]
[1749643097907,0.1,2772.4,2771.8,0.55]
[1749643098116,0.1,2772.4,2772.0,1.3743]
[1749643098267,3.657,2772.4,2772.2,1.62626655]
[1749643098667,3.657,2772.4,2772.2,0.55]
[1749643098871,9.90808238,2772.9,2772.2,1.62626655]
[1749643099100,3.657,2772.8,2772.2,1.68648679]
[1749643099679,7.65312427,2772.9,2772.2,1.68648679]
[1749643099680,3.657,2772.7,2772.2,0.61022024]
[1749643100005,3.656,2772.6,2772.2,0.61022024]
[1749643100209,3.22336976,2772.6,2772.2,0.61022024]
[1749643100512,3.656,2772.5,2772.2,0.61022024]
[1749643101070,0.7994,2772.8,2772.2,0.61022024]
[1749643101285,3.656,2772.7,2772.2,0.61022024]
[1749643101482,3.656,2772.7,2772.4,0.55]
[1749643101813,3.656,2772.6,2772.4,0.55]
[1749643101980,1.21085243,2772.7,2772.4,0.55]
[1749643102311,3.656,2772.6,2772.4,0.55]
[1749643103534,1.35141846,2772.9,2772.4,0.55]
[1749643103823,3.656,2772.6,2772.4,1.3565]
[1749643104896,0.7994,2773.0,2772.4,1.3565]
[1749643105111,3.656,2772.9,2772.4,1.3565]
[1749643105405,3.656,2772.9,2772.4,1.48795397]
[1749643108693,7.26233918,2772.9,2772.4,1.48795397]
[1749643108940,7.26233918,2772.9,2772.4,0.68145397]
[1749643109126,6.30170581,2772.8,2772.4,0.68145397]
[1749643109426,1.35641139,2772.7,2772.4,0.68145397]
[1749643109628,6.30170581,2772.6,2772.4,0.68145397]
[1749643109792,1.35641139,2772.7,2772.4,0.68145397]
[1749643109793,3.655,2772.5,2772.4,0.68145397]
[1749643113117,3.105,2772.5,2772.4,0.68145397]
[1749643114034,3.655,2772.5,2772.4,0.68145397]
[1749643115830,3.655,2772.5,2772.4,1.53988469]
[1749643116232,3.22238893,2772.5,2772.4,1.53988469]
[1749643116734,8.22139451,2772.5,2772.4,0.98988469]
[1749643116913,8.99909451,2772.5,2772.4,0.13145397]
[1749643118138,15.30080032,2772.5,2772.4,0.13145397]
[1749643118608,15.30080032,2772.5,2771.7,0.33687762]
[1749643118609,0.7886,2771.9,2771.7,0.33687762]
[1749643118809,3.655,2771.8,2771.7,0.33687762]
[1749643119009,3.60750876,2772.0,2771.8,0.55]
[1749643119232,3.60750876,2772.0,2771.9,1.40993125]
[1749643119537,7.59880113,2772.0,2771.9,1.43891675]
[1749643119734,13.90050698,2772.0,2771.9,1.43891675]
[1749643119941,15.42993794,2772.0,2771.9,1.43891675]
[1749643120139,15.42993794,2772.0,2771.9,0.5789855]
[1749643120837,15.76624087,2772.0,2771.9,1.43939821]
[1749643121010,15.42993794,2772.0,2771.9,1.43939821]
[1749643121209,15.76624598,2772.0,2771.9,1.43939821]
[1749643121470,15.7662413,2772.0,2771.9,1.43939821]
[1749643121629,15.42993794,2772.0,2771.9,0.88939821]
[1749643122608,15.76624111,2772.0,2771.9,0.88939821]
[1749643122804,15.76623972,2772.0,2771.9,0.88939821]
[1749643123108,15.42993794,2772.0,2771.9,0.88939821]
[1749643123503,15.76624256,2772.0,2771.9,0.88939821]
[1749643123739,15.42993794,2772.0,2771.9,0.88939821]
[1749643124041,15.76625025,2772.0,2771.9,0.88939821]
[1749643124246,16.10255922,2772.0,2771.9,0.88939821]
[1749643124705,3.6077639,2771.8,2771.7,0.33687762]
[1749643124902,13.90079158,2771.8,2771.7,0.33687762]
[1749643125134,13.56446971,2771.8,2771.7,0.33687762]
[1749643125346,14.38096971,2771.8,2771.7,0.33687762]
[1749643125719,14.71729545,2771.8,2771.7,0.33687762]
[1749643125926,16.97859123,2771.8,2771.7,0.33687762]
[1749643126120,16.64226094,2771.8,2771.7,0.33687762]
[1749643126942,16.97858742,2771.8,2771.7,0.33687762]
[1749643127142,16.64226094,2771.8,2771.7,0.33687762]
[1749643127345,16.978587,2771.8,2771.7,0.33687762]
[1749643127548,16.64226094,2771.8,2771.7,0.33687762]
[1749643127926,16.97858703,2771.8,2771.7,0.33687762]
[1749643128257,16.64226094,2771.8,2771.7,0.33687762]
[1749643128988,17.52858525,2771.8,2771.7,0.33687762]
[1749643129264,17.19226094,2771.8,2771.7,0.33687762]
[1749643129444,17.52858776,2771.8,2771.7,0.33687762]
[1749643129754,17.19226094,2771.8,2771.7,0.33687762]
[1749643129961,10.89055513,2771.8,2771.7,0.33687762]
[1749643130749,11.22866045,2771.8,2771.7,0.33687762]
[1749643130931,10.89055513,2771.8,2771.7,0.33687762]
[1749643131138,11.22866022,2771.8,2771.7,0.33687762]
[1749643131336,10.89055513,2771.8,2771.7,0.33687762]
[1749643131558,11.22865177,2771.8,2771.7,0.33687762]
[1749643131857,10.89055513,2771.8,2771.7,0.33687762]
[1749643132366,7.57365631,2771.8,2771.7,0.33687762]
[1749643132562,17.19226094,2771.8,2771.7,0.33687762]
[1749643133158,17.53037094,2771.8,2771.7,0.33687762]
[1749643133364,17.53038193,2771.8,2771.7,0.33687762]
[1749643133660,17.19226094,2771.8,2771.7,0.33687762]
[1749643133863,17.53038884,2771.8,2771.7,0.33687762]
[1749643134268,17.52918347,2771.8,2771.7,0.33687762]
[1749643135438,17.83023222,2771.8,2771.7,0.33687762]
[1749643135864,18.16716605,2771.8,2771.7,0.33687762]
[1749643136065,18.16716867,2771.8,2771.7,0.33687762]
[1749643136268,18.16716911,2771.8,2771.7,0.33687762]
[1749643136523,18.16716881,2771.8,2771.7,0.33687762]
[1749643136644,18.16717152,2771.8,2771.7,0.33687762]
[1749643136975,17.83023222,2771.8,2771.7,0.33687762]
[1749643137159,18.16717261,2771.8,2771.7,0.33687762]
[1749643137346,17.83023222,2771.8,2771.7,0.33687762]
[1749643137541,18.1671693,2771.8,2771.7,0.33687762]
[1749643137744,17.83023222,2771.8,2771.7,0.33687762]
[1749643138769,18.16717215,2771.8,2771.7,0.33687762]
[1749643139476,18.16717196,2771.8,2771.7,0.33687762]
[1749643139633,18.16717236,2771.8,2771.7,0.33687762]
[1749643140446,17.83023222,2771.8,2771.7,0.33687762]
[1749643140651,18.16721755,2771.8,2771.7,0.33687762]
[1749643141172,18.16721373,2771.8,2771.7,0.33687762]
[1749643141670,18.16721324,2771.8,2771.7,0.33687762]
[1749643142170,18.16721214,2771.8,2771.7,0.33687762]
[1749643142375,19.10921214,2771.8,2771.7,0.33687762]
[1749643142534,19.10920334,2771.8,2771.7,0.33687762]
[1749643142937,19.10920147,2771.8,2771.7,0.33687762]
[1749643143334,19.10920183,2771.8,2771.7,0.33687762]
[1749643143564,19.10920194,2771.8,2771.7,0.33687762]
[1749643143876,19.10920085,2771.8,2771.7,0.33687762]
[1749643144172,18.77223222,2771.8,2771.7,0.33687762]
[1749643144380,12.80767213,2771.8,2771.7,0.33687762]
[1749643144555,19.10937879,2771.8,2771.7,0.33687762]
[1749643144752,19.10937882,2771.8,2771.7,0.33687762]
[1749643145459,19.1093795,2771.8,2771.7,0.33687762]
[1749643145778,19.10937948,2771.8,2771.7,0.33687762]
[1749643145965,18.77223222,2771.8,2771.7,0.33687762]
[1749643146477,19.10937948,2771.8,2771.7,0.33687762]
[1749643147268,19.10948125,2771.8,2771.7,0.33687762]
[1749643147454,19.10948285,2771.8,2771.7,0.33687762]
[1749643147871,19.10948082,2771.8,2771.7,0.33687762]
[1749643148058,19.10948076,2771.8,2771.7,0.33687762]
[1749643148258,19.10948079,2771.8,2771.7,0.33687762]
[1749643148470,19.10948074,2771.8,2771.7,0.33687762]
[1749643148640,29.10948325,2771.8,2771.7,0.33687762]
[1749643148844,29.10948406,2771.8,2771.7,0.33687762]
[1749643149182,29.11017636,2771.8,2771.7,0.33687762]
[1749643149554,28.77223222,2771.8,2771.7,0.33687762]
[1749643149759,29.11018675,2771.8,2771.7,0.33687762]
[1749643149960,29.11019233,2771.8,2771.7,0.33687762]
[1749643150485,29.11019022,2771.8,2771.7,0.33687762]
[1749643151379,29.10984818,2771.8,2771.7,0.33687762]
[1749643153036,28.77223222,2771.8,2771.7,0.33687762]
[1749643160136,27.90649844,2771.8,2771.7,0.33687762]
[1749643160293,27.60544969,2771.8,2771.7,0.33687762]
[1749643160644,3.60869659,2771.1,2770.9,2.02352195]
[1749643160791,14.86738095,2771.0,2770.9,2.02352195]
[1749643160991,13.56651129,2771.0,2770.9,2.02352195]
[1749643162990,9.91051129,2771.0,2770.9,2.02352195]
[1749643163315,13.56651129,2771.0,2770.9,2.02352195]
[1749643163689,7.26480548,2771.0,2770.9,2.02352195]
[1749643164125,13.56651129,2771.0,2770.9,2.02352195]
[1749643165290,15.45772208,2771.0,2770.9,2.02352195]
[1749643166622,11.8489166,2771.0,2770.9,2.02352195]
[1749643166939,14.50651129,2771.0,2770.9,2.02352195]
[1749643168948,9.91051129,2771.0,2770.9,2.02352195]
[1749643169120,13.56651129,2771.0,2770.9,2.57352195]
[1749643170304,13.56651129,2771.0,2770.9,2.02352195]
[1749643170305,12.70067167,2771.0,2770.9,2.02352195]
[1749643170549,12.70067167,2771.0,2770.9,2.57352195]
[1749643170851,12.70067167,2771.0,2770.9,2.02352195]
[1749643171909,12.70067167,2771.0,2770.9,2.57352195]
[1749643172747,13.56651129,2771.0,2770.9,2.57352195]
[1749643176547,7.26480548,2771.0,2770.9,2.57352195]
[1749643176761,13.56651129,2771.0,2770.9,2.57352195]
[1749643179854,8.20580548,2771.0,2770.9,2.57352195]
[1749643180061,3.60880548,2771.0,2770.9,3.34802195]
[1749643180241,3.60829219,2771.4,2771.0,0.55]
[1749643180242,4.11673529,2771.2,2771.0,0.55]
[1749643180442,3.656,2771.1,2771.0,0.55]
[1749643180777,3.60861867,2771.2,2771.0,1.62998633]
[1749643181073,3.60828462,2771.4,2771.2,0.55]
[1749643181233,7.26441482,2771.3,2771.2,1.63017695]
[1749643181438,3.656,2771.3,2771.2,1.63017695]
[1749643181986,4.5492103,2771.5,2771.4,0.55]
[1749643182172,3.6082103,2771.5,2771.4,0.55]
[1749643182348,7.2642103,2771.5,2771.4,0.55]
[1749643184047,3.656,2771.5,2771.4,0.55]
[1749643184251,7.2642103,2771.5,2771.4,0.55]
[1749643184689,6.39854108,2771.5,2771.4,0.55]
[1749643186858,3.6082103,2771.5,2771.4,0.55]
[1749643187051,7.2632103,2771.5,2771.4,0.55]
[1749643188871,7.2632103,2771.5,2771.1,1.84467695]
[1749643189194,3.60854503,2771.2,2771.1,0.7645]
[1749643189501,7.26354503,2771.2,2771.1,2.39347438]
[1749643189663,3.655,2771.2,2771.1,2.39347438]
[1749643189990,7.26354503,2771.2,2771.1,1.3145]
[1749643190180,5.96497152,2771.2,2771.1,1.3145]
[1749643190395,5.09926906,2771.2,2771.1,2.39347438]
[1749643191493,3.60847933,2771.3,2771.2,0.55]
[1749643191696,7.26347933,2771.3,2771.2,0.55]
[1749643192579,7.26347933,2771.3,2771.2,0.56]
[1749643192915,6.39778757,2771.3,2771.2,0.56]
[1749643195309,3.655,2771.3,2771.2,0.56]
[1749643195512,3.655,2771.3,2771.2,1.62872732]
[1749643195666,3.60822898,2771.5,2771.2,1.62872732]
[1749643195863,3.655,2771.4,2771.3,1.3043]
[1749643197729,7.26328462,2771.4,2771.3,1.3043]
[1749643198200,3.655,2771.4,2771.3,1.3043]
[1749643200336,3.60815442,2771.5,2771.4,0.55]
[1749643200640,3.60801189,2771.7,2771.4,0.56]
[1749643200801,3.655,2771.6,2771.4,0.56]
[1749643201002,3.655,2771.5,2771.4,0.56]
[1749643201494,3.655,2771.5,2771.4,1.63872732]
[1749643201940,3.654,2771.5,2771.4,1.63872732]
[1749643202441,3.654,2771.5,2771.4,1.66771282]
[1749643202798,3.654,2771.5,2771.4,0.5889855]
[1749643202998,3.654,2771.5,2771.4,1.66770424]
[1749643203240,0.33692253,2771.8,2771.4,8.32589678]
[1749643203413,0.33692253,2771.8,2771.7,19.10191128]
[1749643203915,0.33692253,2771.8,2771.7,12.82919097]
[1749643204318,10.24639224,2771.8,2771.7,2.01419097]
[1749643204548,12.0393488,2771.8,2771.7,0.0289855]
[1749643205030,15.6933488,2771.8,2771.7,0.0289855]
[1749643205410,7.59868643,2771.8,2771.7,0.0289855]
[1749643205933,8.41918643,2771.8,2771.7,0.0289855]
[1749643206922,18.41918643,2771.8,2771.7,0.0289855]
[1749643207454,18.0822639,2771.8,2771.7,0.0289855]
[1749643211232,18.0822639,2771.8,2771.7,0.5789855]
[1749643211439,3.60817016,2771.5,2770.8,1.85830602]
[1749643211667,3.60874689,2771.1,2770.8,1.85830602]
[1749643211826,7.26283895,2771.0,2770.8,1.85830602]
[1749643212156,9.90987597,2771.5,2770.8,0.78]
[1749643212157,7.26293572,2770.9,2770.8,0.78]
[1749643212463,3.654,2770.9,2770.8,0.78]
[1749643213237,3.60906597,2770.8,2770.7,1.07830602]
[1749643213443,3.60906597,2770.8,2770.7,0.55]
[1749643216864,9.91077178,2770.8,2770.7,0.55]
[1749643217067,11.70980412,2770.8,2770.7,0.55]
[1749643217272,5.40809831,2770.8,2770.7,0.55]
[1749643228901,3.60997797,2770.1,2770.0,1.84904171]
[1749643229198,7.26497797,2770.1,2770.0,0.7719]
[1749643229901,3.655,2770.1,2770.0,0.7719]
[1749643230199,6.22280847,2770.8,2770.0,0.7719]
[1749643230512,3.60969364,2770.4,2770.0,1.84904171]
[1749643230803,3.655,2770.3,2770.1,1.62714171]
[1749643231191,7.2647284,2770.3,2770.1,1.62714171]
[1749643231391,7.2647879,2770.3,2770.1,1.62714171]
[1749643233507,3.655,2770.3,2770.1,1.62714171]
[1749643233714,7.26471792,2770.3,2770.1,1.62714171]
[1749643234340,7.26471792,2770.3,2770.2,1.63714171]
[1749643235238,7.26471792,2770.3,2770.2,0.56]
[1749643235439,7.26471792,2770.3,2770.2,1.63945151]
[1749643236441,7.26471792,2770.3,2770.2,0.56]
[1749643236938,7.26471792,2770.3,2770.2,1.63991613]
[1749643237129,7.26471792,2770.3,2770.2,1.62991613]
[1749643237298,7.26471792,2770.3,2770.2,0.56]
[1749643238526,8.35215053,2770.3,2770.2,0.01]
[1749643239398,0.7709,2770.0,2769.8,1.08038317]
[1749643239602,0.7709,2770.0,2769.6,1.57053837]
[1749643239603,4.38139933,2769.7,2769.6,0.1353329]
[1749643239858,5.90487127,2769.7,2769.2,1.43520547]
[1749643240138,4.38105555,2770.0,2769.5,0.55]
[1749643240139,3.655,2769.6,2769.5,0.55]
[1749643240597,0.8268,2770.5,2769.5,6.85170581]
[1749643240802,10.0,2770.8,2769.3,10.0]